bitfinex/quotes_SOLUSD_20241122
["timestamp","ask_amount","ask_price","bid_price","bid_amount"]
[1732292143383,12.015926,254.56,254.44,16.2309]
[1732292144490,12.015926,254.6,254.44,16.2309]
[1732292145416,12.015926,254.58,254.44,16.2309]
[1732292146105,23.776884,254.57,254.44,16.2309]
[1732292146489,23.776884,254.55,254.44,16.2309]
[1732292146900,12.015926,254.54,254.44,16.2309]
[1732292147216,23.776884,254.51,254.44,16.2309]
[1732292147710,23.776884,254.53,254.44,16.2309]
[1732292147885,12.015926,254.52,254.44,16.2309]
[1732292148092,23.776884,254.51,254.44,16.2309]
[1732292148589,23.776884,254.53,254.44,16.2309]
[1732292151217,137.3,254.62,254.44,16.2309]
[1732292151218,12.015926,254.56,254.44,16.2309]
[1732292151715,12.015926,254.58,254.44,16.2309]
[1732292152215,12.015926,254.58,254.45,20.0]
[1732292152618,12.015926,254.62,254.45,20.0]
[1732292153010,12.015926,254.6,254.45,20.0]
[1732292154022,23.776884,254.59,254.45,20.0]
[1732292154316,12.015926,254.58,254.45,20.0]
[1732292154520,23.776884,254.57,254.45,20.0]
[1732292155402,23.776884,254.55,254.44,16.2309]
[1732292156120,23.776884,254.57,254.44,16.2309]
[1732292158320,12.015926,254.56,254.44,16.2309]
[1732292158508,23.776884,254.55,254.44,16.2309]
[1732292159321,23.776884,254.57,254.44,16.2309]
[1732292159794,23.776884,254.57,254.45,20.0]
[1732292162308,12.015926,254.56,254.45,20.0]
[1732292162511,12.015926,254.56,254.44,16.2309]
[1732292162512,23.776884,254.55,254.44,16.2309]
[1732292164007,23.776884,254.57,254.44,16.2309]
[1732292164719,12.015926,254.54,254.44,16.2309]
[1732292164929,23.776884,254.53,254.44,16.2309]
[1732292166322,137.3,254.64,254.44,16.2309]
[1732292166618,20.0,254.61,254.45,20.0]
[1732292166827,12.015926,254.59,254.45,20.0]
[1732292167320,12.015926,254.57,254.45,20.0]
[1732292167707,23.776884,254.56,254.44,16.2309]
[1732292169708,23.776884,254.54,254.44,16.2309]
[1732292171018,23.776884,254.55,254.44,16.2309]
[1732292172323,7.68832292,254.54,254.44,16.2309]
[1732292172534,23.776884,254.53,254.44,16.2309]
[1732292175433,151.74684543,254.63,254.44,16.2309]
[1732292175434,23.776884,254.55,254.44,16.2309]
[1732292175641,23.776884,254.53,254.44,16.2309]
[1732292177832,23.776884,254.55,254.44,16.2309]
[1732292178533,5.97342271,254.62,254.45,20.0]
[1732292178725,7.68832292,254.62,254.46,6.0166]
[1732292178927,7.68832292,254.6,254.47,20.0]
[1732292179722,23.776884,254.59,254.47,20.0]
[1732292179940,23.776884,254.59,254.46,6.0166]
[1732292181232,23.776884,254.59,254.47,16.0415]
[1732292181912,13.66174563,254.65,254.47,16.0415]
[1732292182113,5.97342271,254.66,254.48,20.0]
[1732292182309,7.68832292,254.65,254.49,16.1358]
[1732292182739,7.68832292,254.63,254.49,16.1358]
[1732292183634,23.776884,254.62,254.49,16.1358]
[1732292184143,23.776884,254.64,254.5,20.0]
[1732292184437,13.66174563,254.69,254.52,20.0]
[1732292185333,7.68832292,254.69,254.52,20.0]
[1732292188438,7.68832292,254.65,254.51,22.8507]
[1732292188624,23.776884,254.64,254.51,22.8507]
[1732292191127,20.0,254.69,254.52,36.4798]
[1732292191324,27.68832292,254.69,254.52,36.4798]
[1732292192147,20.0,254.7,254.52,36.4798]
[1732292192336,23.776884,254.69,254.52,36.4798]
[1732292192523,31.46520692,254.69,254.52,36.4798]
[1732292193027,5.97342271,254.74,254.54,20.0]
[1732292193349,7.68832292,254.71,254.54,20.0]
[1732292193527,7.68832292,254.71,254.55,15.4821]
[1732292193730,7.68832292,254.71,254.56,20.0]
[1732292194047,7.68832292,254.69,254.56,20.0]
[1732292194349,23.776884,254.68,254.57,6.5311]
[1732292194519,23.776884,254.68,254.58,20.0]
[1732292194722,20.0,254.75,254.59,16.0157]
[1732292194919,23.776884,254.74,254.59,16.0157]
[1732292195135,23.776884,254.72,254.59,16.0157]
[1732292195723,7.68832292,254.69,254.59,16.0157]
[1732292195922,23.776884,254.68,254.59,16.0157]
[1732292197955,5.97342271,254.77,254.6,20.0]
[1732292198159,23.776884,254.75,254.6,20.0]
[1732292198822,23.776884,254.75,254.61,15.0665]
[1732292199126,31.46520692,254.75,254.62,20.0]
[1732292200427,31.46520692,254.75,254.61,15.0665]
[1732292200627,7.68832292,254.71,254.61,15.0665]
[1732292200831,23.776884,254.7,254.61,15.0665]
[1732292201349,23.776884,254.68,254.61,15.0665]
[1732292201533,23.776884,254.66,254.61,15.0665]
[1732292204260,7.68832292,254.63,254.57,6.5311]
[1732292204435,23.776884,254.62,254.55,15.8817]
[1732292204643,23.776884,254.6,254.55,15.8817]
[1732292205158,23.776884,254.58,254.51,6.3385]
[1732292205334,23.776884,254.56,254.49,15.7849]
[1732292205530,7.68832292,254.55,254.49,15.7849]
[1732292205747,23.776884,254.52,254.49,15.7849]
[1732292207043,149.31078187,254.62,254.49,15.7849]
[1732292207356,23.776884,254.61,254.49,15.7849]
[1732292207838,12.01078187,254.6,254.49,15.7849]
[1732292208037,23.776884,254.59,254.49,15.7849]
[1732292209257,23.776884,254.59,254.5,20.0]
[1732292209464,23.776884,254.61,254.5,20.0]
[1732292209759,23.776884,254.63,254.5,20.0]
[1732292210837,23.776884,254.65,254.5,20.0]
[1732292213948,12.01078187,254.7,254.54,20.0]
[1732292214535,12.01078187,254.72,254.54,20.0]
[1732292214861,11.94684543,254.77,254.56,20.0]
[1732292214862,12.01078187,254.74,254.56,20.0]
[1732292215068,12.01078187,254.74,254.57,16.1069]
[1732292215364,17.98420458,254.79,254.6,20.0]
[1732292215668,12.01078187,254.81,254.62,35.1609]
[1732292216536,5.97342271,254.85,254.62,35.1609]
[1732292216763,12.01078187,254.85,254.62,35.1609]
[1732292217572,12.01078187,254.85,254.63,16.4029]
[1732292217748,12.01078187,254.85,254.64,20.0]
[1732292218274,23.776884,254.84,254.64,20.0]
[1732292218447,23.776884,254.84,254.66,20.0]
[1732292218787,12.01078187,254.87,254.68,20.0]
[1732292219069,12.01078187,254.89,254.7,20.0]
[1732292219764,12.01078187,254.85,254.7,20.0]
[1732292220359,12.01078187,254.83,254.7,20.0]
[1732292220862,23.776884,254.82,254.7,20.0]
[1732292221568,23.776884,254.86,254.7,20.0]
[1732292222867,12.01078187,254.89,254.71,15.0126]
[1732292223044,12.01078187,254.91,254.72,20.0]
[1732292223244,137.3,254.98,254.74,20.0]
[1732292223446,137.3,254.98,254.76,20.0]
[1732292223447,12.01078187,254.96,254.76,20.0]
[1732292223648,12.01078187,254.96,254.78,20.0]
[1732292223859,12.01078187,254.96,254.8,20.0]
[1732292224784,12.01078187,254.96,254.82,20.0]
[1732292225872,23.776884,254.95,254.82,20.0]
[1732292226376,12.01078187,254.98,254.82,20.0]
[1732292226377,23.776884,254.97,254.82,20.0]
[1732292227249,12.01078187,255.02,254.81,16.3281]
[1732292227448,12.01078187,255.02,254.82,20.0]
[1732292227652,12.01078187,254.98,254.84,20.0]
[1732292228371,12.01078187,255.0,254.84,20.0]
[1732292229670,23.776884,254.99,254.84,20.0]
[1732292230569,12.01078187,254.98,254.84,20.0]
[1732292230767,23.776884,254.95,254.84,20.0]
[1732292231170,23.776884,254.97,254.84,20.0]
[1732292231348,23.776884,254.99,254.84,20.0]
[1732292231552,137.3,255.08,254.84,20.0]
[1732292231553,23.776884,255.01,254.84,20.0]
[1732292231745,12.01078187,255.02,254.85,16.21]
[1732292232267,12.01078187,255.04,254.87,16.21]
[1732292232467,12.01078187,255.06,254.88,20.0]
[1732292232770,12.01078187,255.06,254.9,20.0]
[1732292233860,23.776884,255.01,254.9,20.0]
[1732292234875,23.776884,254.99,254.9,20.0]
[1732292235052,12.01078187,254.96,254.89,6.1509]
[1732292235377,23.776884,254.95,254.89,6.1509]
[1732292236673,23.776884,254.95,254.87,16.21]
[1732292236848,12.01078187,254.92,254.87,16.21]
[1732292237048,23.776884,254.91,254.87,16.21]
[1732292243754,23.776884,254.93,254.87,16.21]
[1732292243956,12.01078187,254.9,254.87,16.21]
[1732292244156,23.776884,254.93,254.55,3.24]
[1732292244157,23.776884,254.87,254.8,15.5811]
[1732292244373,23.776884,254.84,254.8,15.5811]
[1732292244575,23.776884,254.82,254.73,15.5811]
[1732292244775,23.776884,254.8,254.73,15.5811]
[1732292245086,23.776884,254.78,254.73,15.5811]
[1732292245586,23.776884,254.76,254.67,15.5811]
[1732292247179,12.01078187,254.73,254.61,16.4809]
[1732292247380,23.776884,254.72,254.61,16.4809]
[1732292248783,23.776884,254.72,254.62,20.0]
[1732292248990,23.776884,254.73,254.62,20.0]
[1732292249984,23.776884,254.75,254.62,20.0]
[1732292250290,23.776884,254.77,254.62,20.0]
[1732292250465,12.01078187,254.82,254.62,20.0]
[1732292250660,12.01078187,254.8,254.62,20.0]
[1732292250866,12.01078187,254.76,254.62,20.0]
[1732292251486,12.01078187,254.74,254.62,20.0]
[1732292251866,2.5,254.86,254.62,20.0]
[1732292251867,23.776884,254.75,254.62,20.0]
[1732292253386,23.776884,254.73,254.62,20.0]
[1732292253564,23.776884,254.73,254.61,16.4809]
[1732292253766,12.01078187,254.8,254.61,16.4809]
[1732292253767,23.776884,254.71,254.61,16.4809]
[1732292254486,23.776884,254.73,254.61,16.4809]
[1732292255377,23.776884,254.71,254.61,16.4809]
[1732292255771,12.01078187,254.7,254.61,16.4809]
[1732292255978,23.776884,254.69,254.61,16.4809]
[1732292256191,12.01078187,254.66,254.61,16.4809]
[1732292256488,23.776884,254.65,254.61,16.4809]
[1732292256690,23.776884,254.67,254.61,16.4809]
[1732292258076,23.776884,254.65,254.54,15.3608]
[1732292259891,137.3,254.74,254.54,15.3608]
[1732292260091,12.01078187,254.71,254.55,20.0]
[1732292261275,12.01078187,254.73,254.55,20.0]
[1732292261481,23.776884,254.72,254.55,20.0]
[1732292263485,23.776884,254.7,254.55,20.0]
[1732292265113,23.776884,254.72,254.55,20.0]
[1732292266176,23.776884,254.74,254.55,20.0]
[1732292266901,23.776884,254.74,254.57,20.0]
[1732292267497,12.01078187,254.79,254.57,20.0]
[1732292267796,12.01078187,254.79,254.59,20.0]
[1732292267979,12.01078187,254.81,254.61,20.0]
[1732292268681,12.01078187,254.81,254.63,20.0]
[1732292269078,23.776884,254.8,254.63,20.0]
[1732292271982,23.776884,254.82,254.63,20.0]
[1732292272991,23.776884,254.8,254.63,20.0]
[1732292273991,23.776884,254.82,254.64,16.3146]
[1732292274294,137.3,254.89,254.67,20.0]
[1732292274295,12.01078187,254.85,254.67,20.0]
[1732292274496,12.01078187,254.85,254.69,20.0]
[1732292274803,12.01078187,254.87,254.69,20.0]
[1732292275595,23.776884,254.86,254.69,20.0]
[1732292276096,12.01078187,254.85,254.69,20.0]
[1732292276612,23.776884,254.84,254.69,20.0]
[1732292277202,23.776884,254.84,254.7,16.3255]
[1732292277514,12.01078187,254.9,254.71,20.0]
[1732292277681,12.01078187,254.9,254.72,16.4086]
[1732292277882,12.01078187,254.9,254.74,6.6186]
[1732292278079,12.01078187,254.94,254.77,20.0]
[1732292279802,12.01078187,254.96,254.79,20.0]
[1732292280196,23.776884,254.95,254.79,20.0]
[1732292280814,12.01078187,254.94,254.79,20.0]
[1732292280984,23.776884,254.93,254.79,20.0]
[1732292281881,12.01078187,254.9,254.79,20.0]
[1732292282083,23.776884,254.89,254.79,20.0]
[1732292283615,23.776884,254.91,254.79,20.0]
[1732292283911,12.01078187,254.96,254.79,20.0]
[1732292284497,20.0,255.0,254.79,20.0]
[1732292284703,12.01078187,254.97,254.81,20.0]
[1732292285719,12.01078187,254.95,254.81,20.0]
[1732292285885,23.776884,254.94,254.81,20.0]
[1732292286214,23.776884,254.92,254.81,20.0]
[1732292288610,23.776884,254.9,254.81,20.0]
[1732292289111,12.01078187,254.87,254.8,6.2543]
[1732292289292,23.776884,254.86,254.8,6.2543]
[1732292289614,23.776884,254.84,254.78,15.5581]
[1732292289988,12.01078187,254.83,254.78,15.5581]
[1732292290193,23.776884,254.82,254.78,15.5581]
[1732292290615,3.9219,254.98,254.78,15.5581]
[1732292290616,8.55653628,255.03,254.79,6.6415]
[1732292290817,162.3527,255.04,254.79,6.6415]
[1732292290818,12.01078187,254.92,254.79,6.6415]
[1732292291005,12.01078187,254.9,254.79,6.6415]
[1732292291517,12.01078187,254.88,254.8,20.0]
[1732292291912,12.01078187,254.86,254.78,15.5581]
[1732292292109,23.776884,254.85,254.78,15.5581]
[1732292292620,23.776884,254.89,254.78,15.5581]
[1732292292787,12.01078187,254.92,254.78,15.5581]
[1732292292996,12.01078187,254.94,254.79,20.0]
[1732292294013,137.3,254.98,254.79,20.0]
[1732292294014,12.01078187,254.92,254.79,20.0]
[1732292294401,23.776884,254.91,254.79,20.0]
[1732292295304,23.776884,254.89,254.79,20.0]
[1732292295814,23.776884,254.87,254.79,20.0]
[1732292296815,139.8,254.97,254.79,20.0]
[1732292296816,12.01078187,254.93,254.79,20.0]
[1732292297597,12.01078187,254.95,254.81,20.0]
[1732292299104,23.776884,254.94,254.81,20.0]
[1732292301609,12.01078187,254.99,254.83,20.0]
[1732292302607,137.3,255.05,254.83,20.0]
[1732292302608,12.01078187,255.03,254.83,6.1061]
[1732292302828,12.01078187,255.03,254.85,16.4282]
[1732292303125,12.01078187,255.05,254.88,20.0]
[1732292304507,12.01078187,255.05,254.9,20.0]
[1732292305521,12.01078187,255.01,254.9,20.0]
[1732292305712,12.01078187,255.03,254.9,20.0]
[1732292305899,23.776884,255.02,254.9,20.0]
[1732292307021,137.3,255.15,254.93,22.4854]
[1732292307320,12.01078187,255.13,254.95,16.1845]
[1732292307520,12.01078187,255.13,254.96,20.0]
[1732292307912,12.01078187,255.15,254.9,22.4854]
[1732292308121,12.01078187,255.15,254.98,20.0]
[1732292309919,12.01078187,255.19,255.0,20.0]
[1732292310102,12.01078187,255.17,255.0,20.0]
[1732292311518,23.776884,255.16,255.0,20.0]
[1732292313434,23.776884,255.12,255.0,20.0]
[1732292313626,12.01078187,255.11,255.0,20.0]
[1732292313933,23.776884,255.1,254.99,22.4854]
[1732292314532,12.01078187,255.09,254.99,22.4854]
[1732292314738,23.776884,255.08,254.99,22.4854]
[1732292317215,23.776884,255.1,254.99,22.4854]
[1732292317433,23.776884,255.12,255.0,20.0]
[1732292317653,12.01078187,255.11,255.0,20.0]
[1732292318132,23.776884,255.1,255.0,20.0]
[1732292321544,23.776884,255.12,255.0,20.0]
[1732292324621,12.01078187,255.11,255.0,20.0]
[1732292324827,23.776884,255.08,255.0,20.0]
[1732292327345,12.01078187,255.17,255.0,20.0]
[1732292327555,12.01078187,255.17,255.01,15.2413]
[1732292327719,12.01078187,255.17,255.02,20.0]
[1732292328930,23.776884,255.16,255.02,20.0]
[1732292329728,23.776884,255.14,255.02,20.0]
[1732292330435,23.776884,255.14,255.01,15.2413]
[1732292330628,12.01078187,255.13,255.01,15.2413]
[1732292331228,23.776884,255.12,255.01,15.2413]
[1732292331638,23.776884,255.14,255.01,15.2413]
[1732292331833,23.776884,255.14,255.02,20.0]
[1732292333148,12.01078187,255.11,255.02,20.0]
[1732292333355,23.776884,255.12,255.02,20.0]
[1732292333730,23.776884,255.14,255.02,20.0]
[1732292334849,23.776884,255.16,255.02,20.0]
[1732292340152,23.776884,255.17,255.02,20.0]
[1732292344957,23.776884,255.17,255.01,15.0974]
[1732292345169,23.776884,255.17,255.05,20.0]
[1732292348458,23.776884,255.19,255.05,20.0]
[1732292350760,137.3,255.29,255.07,26.4388]
[1732292350970,7.65132604,255.26,255.09,20.0]
[1732292351866,137.3,255.3,255.11,6.4401]
[1732292352057,7.65132604,255.29,255.14,20.0]
[1732292353048,7.65132604,255.27,255.14,20.0]
[1732292353248,137.3,255.34,255.14,20.0]
[1732292353249,7.65132604,255.25,255.14,20.0]
[1732292354253,23.776884,255.24,255.14,20.0]
[1732292355378,7.65132604,255.3,255.14,20.0]
[1732292355579,7.65132604,255.28,255.14,20.0]
[1732292356551,6.05653628,255.36,255.14,20.0]
[1732292356758,12.11307256,255.38,255.12,15.3057]
[1732292356759,7.65132604,255.33,255.12,15.3057]
[1732292357070,7.65132604,255.33,255.15,20.0]
[1732292357273,7.65132604,255.33,255.15,35.3057]
[1732292357855,23.776884,255.32,255.15,35.3057]
[1732292358054,23.776884,255.28,255.15,35.3057]
[1732292359171,23.776884,255.26,255.15,35.3057]
[1732292360382,23.776884,255.26,255.16,20.0]
[1732292362055,23.776884,255.27,255.16,20.0]
[1732292362258,23.776884,255.27,255.15,15.3057]
[1732292362871,7.65132604,255.24,255.15,15.3057]
[1732292363176,23.776884,255.23,255.15,15.3057]
[1732292364582,23.776884,255.19,255.15,15.3057]
[1732292364758,23.776884,255.17,255.09,15.8999]
[1732292365085,23.776884,255.18,255.09,15.8999]
[1732292365270,11.95400018,255.15,255.09,15.8999]
[1732292365481,23.776884,255.18,255.09,15.8999]
[1732292366787,23.776884,255.2,255.09,15.8999]
[1732292366976,23.776884,255.18,255.09,15.8999]
[1732292369467,23.776884,255.14,255.09,15.8999]
[1732292369985,23.776884,255.12,255.02,15.2457]
[1732292371961,23.776884,255.1,255.02,15.2457]
[1732292372163,23.776884,255.08,255.02,15.2457]
[1732292375470,11.95400018,255.15,255.02,15.2457]
[1732292376167,11.95400018,255.13,255.02,15.2457]
[1732292376367,11.95400018,255.1,255.02,15.2457]
[1732292376590,23.776884,255.09,255.02,15.2457]
[1732292376996,23.776884,255.11,255.02,15.2457]
[1732292377481,23.776884,255.13,255.02,15.2457]
[1732292379593,11.95400018,255.16,255.03,20.0]
[1732292380696,11.95400018,255.12,255.03,20.0]
[1732292380870,23.776884,255.11,255.02,15.2457]
[1732292381992,23.776884,255.13,255.02,15.2457]
[1732292383782,11.95400018,255.12,255.02,15.2457]
[1732292383987,23.776884,255.11,255.02,15.2457]
[1732292385577,23.776884,255.09,255.02,15.2457]
[1732292385775,11.95400018,255.06,254.92,16.198]
[1732292386096,23.776884,255.05,254.92,16.198]
[1732292387683,23.776884,255.05,254.93,20.0]
[1732292387875,11.95400018,255.04,254.93,20.0]
[1732292388076,23.776884,255.03,254.93,20.0]
[1732292388777,11.95400018,255.02,254.92,16.198]
[1732292389016,23.776884,254.99,254.92,16.198]
[1732292390206,23.776884,255.01,254.92,16.198]
[1732292390990,23.776884,255.01,254.93,20.0]
[1732292391799,23.776884,255.02,254.93,20.0]
[1732292392004,23.776884,255.02,254.92,16.198]
[1732292394722,23.776884,254.98,254.92,16.198]
[1732292395411,7.6617039,254.97,254.92,16.198]
[1732292395616,23.776884,254.96,254.86,16.5308]
[1732292395796,23.776884,254.94,254.86,16.5308]
[1732292397230,23.776884,254.94,254.87,20.0]
[1732292398626,137.3,255.05,254.87,20.0]
[1732292398627,23.776884,254.96,254.87,20.0]
[1732292401800,23.776884,254.96,254.86,16.5308]
[1732292401801,23.776884,254.93,254.86,16.5308]
[1732292403005,7.6617039,255.02,254.87,20.0]
[1732292403506,7.6617039,255.04,254.87,20.0]
[1732292404331,7.6617039,254.98,254.87,20.0]
[1732292404623,23.776884,254.95,254.86,16.5308]
[1732292406131,7.6617039,254.94,254.86,16.5308]
[1732292406306,23.776884,254.93,254.86,16.5308]
[1732292406911,23.776884,254.91,254.86,16.5308]
[1732292407433,7.6617039,254.9,254.86,16.5308]
[1732292407630,23.776884,254.89,254.79,16.4255]
[1732292408405,7.6617039,254.88,254.79,16.4255]
[1732292408627,23.776884,254.87,254.79,16.4255]
[1732292409323,23.776884,254.83,254.79,16.4255]
[1732292409544,23.776884,254.81,254.73,15.4101]
[1732292409831,23.776884,254.79,254.73,15.4101]
[1732292413626,23.776884,254.79,254.74,20.0]
[1732292414733,20.0,254.96,254.74,20.0]
[1732292414916,7.6617039,254.91,254.74,20.0]
[1732292415515,7.6617039,254.89,254.74,20.0]
[1732292416112,23.776884,254.88,254.74,20.0]
[1732292416917,137.3,254.98,254.74,20.0]
[1732292417139,7.6617039,254.92,254.74,20.0]
[1732292418335,23.776884,254.91,254.74,20.0]
[1732292418841,23.776884,254.91,254.75,16.1332]
[1732292419046,7.6617039,254.97,254.8,20.0]
[1732292419519,7.6617039,254.94,254.8,20.0]
[1732292419708,7.6617039,254.92,254.8,20.0]
[1732292420430,23.776884,254.91,254.8,20.0]
[1732292422836,23.776884,254.9,254.79,16.1332]
[1732292423011,23.776884,254.88,254.79,16.1332]
[1732292424141,7.6617039,254.87,254.79,16.1332]
[1732292424340,30.6468156,254.93,254.79,16.1332]
[1732292424341,23.776884,254.84,254.79,16.1332]
[1732292426540,23.776884,254.8,254.68,22.5356]
[1732292426937,23.776884,254.82,254.68,22.5356]
[1732292427418,7.6617039,254.81,254.68,22.5356]
[1732292427623,23.776884,254.8,254.68,22.5356]
[1732292428820,23.776884,254.78,254.68,22.5356]
[1732292429514,23.776884,254.8,254.68,22.5356]
[1732292430651,7.6617039,254.79,254.68,22.5356]
[1732292430942,23.776884,254.78,254.68,22.5356]
[1732292431637,7.6617039,254.75,254.68,16.1663]
[1732292431932,23.776884,254.74,254.68,16.1663]
[1732292434128,23.776884,254.74,254.69,20.0]
[1732292435019,23.732584,254.74,254.69,20.0]
[1732292435231,7.6617039,254.84,254.69,20.0]
[1732292436046,22.5803,254.9,254.69,20.0]
[1732292436225,7.6617039,254.85,254.71,20.0]
[1732292437141,23.776884,254.84,254.73,20.0]
[1732292437437,22.6962,254.96,254.73,20.0]
[1732292437438,23.776884,254.85,254.73,20.0]
[1732292437638,7.6617039,254.84,254.73,20.0]
[1732292437947,23.776884,254.83,254.73,20.0]
[1732292440045,7.6617039,254.86,254.73,20.0]
[1732292440222,7.6617039,254.84,254.73,20.0]
[1732292441456,23.776884,254.83,254.73,20.0]
[1732292441622,7.6617039,254.82,254.72,15.1347]
[1732292441821,23.776884,254.79,254.72,15.1347]
[1732292443030,137.3,254.95,254.73,20.0]
[1732292443350,7.6617039,254.89,254.73,20.0]
[1732292444037,7.6617039,254.87,254.73,20.0]
[1732292444234,7.6617039,254.85,254.73,20.0]
[1732292444543,23.776884,254.82,254.72,15.1347]
[1732292445055,23.776884,254.84,254.72,15.1347]
[1732292445347,23.776884,254.84,254.73,20.0]
[1732292445956,23.776884,254.86,254.73,20.0]
[1732292447131,7.6617039,254.85,254.73,20.0]
[1732292447530,23.776884,254.84,254.72,15.1347]
[1732292447741,7.6617039,254.83,254.72,15.1347]
[1732292447923,23.776884,254.82,254.72,15.1347]
[1732292449050,23.776884,254.84,254.72,15.1347]
[1732292450347,7.6617039,254.82,254.72,15.1347]
[1732292450555,23.776884,254.81,254.72,15.1347]
[1732292451452,137.3,254.9,254.72,15.1347]
[1732292451453,23.776884,254.79,254.72,15.1347]
[1732292455942,23.776884,254.81,254.72,15.1347]
[1732292456649,23.776884,254.79,254.72,15.1347]
[1732292457653,23.776884,254.79,254.64,22.4964]
[1732292457951,23.776884,254.77,254.64,22.4964]
[1732292458756,7.6617039,254.76,254.64,22.4964]
[1732292458939,7.6617039,254.76,254.65,20.0]
[1732292459133,23.776884,254.75,254.65,20.0]
[1732292459839,23.776884,254.75,254.64,22.4964]
[1732292461236,7.6617039,254.73,254.64,22.4964]
[1732292461436,23.776884,254.7,254.64,15.8506]
[1732292463159,23.776884,254.7,254.65,20.0]
[1732292463460,7.6617039,254.8,254.65,20.0]
[1732292464876,11.99084066,254.79,254.65,20.0]
[1732292465046,23.776884,254.78,254.65,20.0]
[1732292465948,23.776884,254.76,254.65,19.5]
[1732292466464,11.99084066,254.81,254.66,6.592]
[1732292466665,11.99084066,254.83,254.67,16.4763]
[1732292467949,23.776884,254.8,254.67,16.4763]
[1732292468154,23.776884,254.8,254.68,20.0]
[1732292470763,23.776884,254.78,254.67,16.4763]
[1732292471461,23.776884,254.76,254.67,16.4763]
[1732292472068,23.776884,254.78,254.67,16.4763]
[1732292473349,23.776884,254.78,254.68,20.0]
[1732292474749,18.04737694,254.85,254.68,20.0]
[1732292475051,6.05653628,254.87,254.69,20.0]
[1732292475252,6.05653628,254.88,254.73,20.0]
[1732292475461,18.04737694,254.89,254.73,20.0]
[1732292475674,6.05653628,254.89,254.73,20.0]
[1732292476076,18.04737694,254.91,254.75,20.0]
[1732292476257,6.05653628,254.92,254.75,20.0]
[1732292476452,18.04737694,254.93,254.75,20.0]
[1732292476676,11.99084066,254.93,254.75,20.0]
[1732292477076,18.04737694,254.95,254.75,20.0]
[1732292477273,18.04737694,254.95,254.74,16.3176]
[1732292477475,11.99084066,254.95,254.75,20.0]
[1732292477657,6.05653628,254.96,254.78,16.3176]
[1732292477983,18.04737694,254.99,254.8,16.3176]
[1732292478280,11.99084066,254.97,254.81,20.0]
[1732292478459,11.99084066,254.95,254.81,20.0]
[1732292478656,11.99084066,254.9,254.81,20.0]
[1732292478859,11.99084066,254.94,254.81,20.0]
[1732292479058,23.776884,254.95,254.81,20.0]
[1732292479456,18.04737694,254.98,254.81,20.0]
[1732292479663,6.05653628,255.0,254.85,20.0]
[1732292479979,6.05653628,255.02,254.86,15.9635]
[1732292480150,6.05653628,255.03,254.87,20.0]
[1732292480355,6.05653628,255.04,254.9,20.0]
[1732292480571,6.05653628,255.06,254.9,20.0]
[1732292480777,18.04737694,255.1,254.9,20.0]
[1732292481160,11.99084066,255.1,254.9,20.0]
[1732292482465,23.776884,255.09,254.91,20.0]
[1732292482675,18.04737694,255.14,254.93,20.0]
[1732292482975,6.05653628,255.15,254.97,20.0]
[1732292483187,11.99084066,255.16,254.97,20.0]
[1732292483482,11.99084066,255.18,254.99,20.0]
[1732292483883,11.99084066,255.22,255.02,16.0732]
[1732292484072,11.99084066,255.24,255.05,20.0]
[1732292486171,11.99084066,255.2,255.05,20.0]